Department family,Entity,Date,Expense Type,Expense area,Supplier,Transation number,Amount,Narrative
Department for Culture Media and Sport,Department for Culture Media and Sport,01/08/2016,Finance & Accounting Services,Finance,Liberata UK Ltd,30047451,25833.33,Fixed cost for accounting services
Department for Culture Media and Sport,Department for Culture Media and Sport,01/08/2016,VAT-Recoverable Contracted-Out,Misc Balance Sheet,Liberata UK Ltd,30047451,5166.67,Fixed cost for accounting services
Department for Culture Media and Sport,Department for Culture Media and Sport,01/08/2016,Capital Grant Private Sector,GIA Architecture+Heritage,Greenwich Foundation for the RN College,50002324,107499,Grant Claim August 2016
Department for Culture Media and Sport,Department for Culture Media and Sport,01/08/2016,Grant-in-Aid (DCMS NDPBs),OFCOM,OFCOM,50002327,134175,Aug 2016 ORPHAN Costs
Department for Culture Media and Sport,Department for Culture Media and Sport,01/08/2016,Grant-in-Aid (DCMS NDPBs),OFCOM,OFCOM,50002328,3302980,August 2016 Spectrum Management Grant Dr
Department for Culture Media and Sport,Department for Culture Media and Sport,01/08/2016,Grant-in-Aid (DCMS NDPBs),OFCOM,OFCOM,50002329,1162157,August 2016 UHF 700MHz costs
Department for Culture Media and Sport,Department for Culture Media and Sport,01/08/2016,Grant-in-Aid (DCMS NDPBs),GIA Museums & Galleries,Tate Gallery,50002330,3487584,August 2016 GIA Drawdown
Department for Culture Media and Sport,Department for Culture Media and Sport,01/08/2016,Grant-in-Aid (DCMS NDPBs),GIA Museums & Galleries,The Royal Armouries,50002331,513865,Grant in Aid August 2016
Department for Culture Media and Sport,Department for Culture Media and Sport,01/08/2016,Grant-in-Aid (DCMS NDPBs),GIA Museums & Galleries,Sir John Soane's Museum,50002334,82000,SJSM GRANT IN AID AUGUST 2016
Department for Culture Media and Sport,Department for Culture Media and Sport,01/08/2016,Grant-in-Aid (DCMS NDPBs),GIA Museums & Galleries,National Portrait Gallery,50002335,553083,NPG GRANT IN AID AUGUST 2016
Department for Culture Media and Sport,Department for Culture Media and Sport,01/08/2016,Grant-in-Aid (DCMS NDPBs),GIA Museums & Galleries,Victoria & Albert Museum,50002336,3223916,VAM GRANT IN AID AUGUST 2016
Department for Culture Media and Sport,Department for Culture Media and Sport,01/08/2016,Grant-in-Aid (DCMS NDPBs),GIA Museums & Galleries,Wallace Collection,50002337,290000,TWC GRANT IN AID AUGUST 2016
Department for Culture Media and Sport,Department for Culture Media and Sport,01/08/2016,Grant-in-Aid (DCMS NDPBs),GIA Museums & Galleries,Geffrye Museum,50002338,124666,GM GRANT IN AID AUGUST 2016
Department for Culture Media and Sport,Department for Culture Media and Sport,01/08/2016,Grant-in-Aid (DCMS NDPBs),GIA Museums & Galleries,Horniman Museum,50002339,287905,HMG GRANT IN AID AUGUST 2016
Department for Culture Media and Sport,Department for Culture Media and Sport,01/08/2016,Grant-in-Aid (DCMS NDPBs),GIA Arts bodies,Arts Council of England,50002347,26149810,Grant-in Aid August 2016
Department for Culture Media and Sport,Department for Culture Media and Sport,01/08/2016,Grant-in-Aid (DCMS NDPBs),GIA British Film Institute,British Film Institute,50002348,1637604,Grant-in Aid August 2016
Department for Culture Media and Sport,Department for Culture Media and Sport,01/08/2016,Grant-in-Aid (DCMS NDPBs),GIA Architecture+Heritage,Churches Conservation Trust,50002349,250000,Grant-in-Aid August 2016
Department for Culture Media and Sport,Department for Culture Media and Sport,01/08/2016,Grant-in-Aid (DCMS NDPBs),GIA Sports bodies,Sport England,50002350,1000000,Grant-in-Aid August 2016
Department for Culture Media and Sport,Department for Culture Media and Sport,01/08/2016,Grant-in-Aid (DCMS NDPBs),GIA Sports bodies,Sport Ground Safety Authority,50002351,94996,Grant-in-Aid August 2016
Department for Culture Media and Sport,Department for Culture Media and Sport,01/08/2016,Grant-in-Aid (DCMS NDPBs),GIA Sports bodies,United Kingdom Anti Doping Ltd,50002353,494600,Grant-in-Aid August 2016
Department for Culture Media and Sport,Department for Culture Media and Sport,01/08/2016,Grant-in-Aid (DCMS NDPBs),GIA S4C Welsh Fourth Channel,S4C-Sianel Pedwar Cymru-all inv inc. GIA,50002356,564000,Grant-in-Aid August 2016
Department for Culture Media and Sport,Department for Culture Media and Sport,01/08/2016,Grant-in-Aid (DCMS NDPBs),GIA Architecture+Heritage,National Heritage Memorial Fund,50002357,3000000,Grant-in-Aid August 2016
Department for Culture Media and Sport,Department for Culture Media and Sport,01/08/2016,Grant-in-Aid (DCMS NDPBs),GIA Tourism bodies,VisitBritain,50002358,4250000,Grant-in-Aid August 2016
Department for Culture Media and Sport,Department for Culture Media and Sport,01/08/2016,Grant-in-Aid (DCMS NDPBs),GIA Museums & Galleries,British Museum,50002359,4480000,Grant in Aid August 2016
Department for Culture Media and Sport,Department for Culture Media and Sport,01/08/2016,Grant-in-Aid (DCMS NDPBs),GIA Museums & Galleries,Imperial War Museum,50002360,1706265,Grant in Aid August 2016
Department for Culture Media and Sport,Department for Culture Media and Sport,01/08/2016,Grant-in-Aid (DCMS NDPBs),GIA Museums & Galleries,Natural History Museum,50002361,4093000,Grant in Aid August 2016
Department for Culture Media and Sport,Department for Culture Media and Sport,01/08/2016,Grant-in-Aid (DCMS NDPBs),GIA Museums & Galleries,National Museums & Galleries Merseyside,50002362,1645767,Grant in Aid August 2016
Department for Culture Media and Sport,Department for Culture Media and Sport,01/08/2016,Grant-in-Aid (DCMS NDPBs),GIA Museums & Galleries,Science Museum Group (ex-NMSI),50002363,3323167,Grant in Aid August 2016
Department for Culture Media and Sport,Department for Culture Media and Sport,01/08/2016,Grant-in-Aid (DCMS NDPBs),GIA Libraries bodies,British Library,50002364,6809769,Grant in Aid August 2016
Department for Culture Media and Sport,Department for Culture Media and Sport,02/08/2016,VAT-Recoverable Contracted-Out,Misc Balance Sheet,ARCADIS Solutions Ltd,30047363,20728.51,State ceremonials
Department for Culture Media and Sport,Department for Culture Media and Sport,02/08/2016,Works Manager Fees,State Ceremonials Prog Costs,ARCADIS Solutions Ltd,30047363,103642.54,State ceremonials
Department for Culture Media and Sport,Department for Culture Media and Sport,02/08/2016,Legal Advice,Broadband Delivery UK (Admin),Pinsent Masons,30047459,26815.5,BDUK rural legal advice
Department for Culture Media and Sport,Department for Culture Media and Sport,02/08/2016,VAT-Recoverable Contracted-Out,Misc Balance Sheet,Pinsent Masons,30047459,5363.1,BDUK rural legal advice
Department for Culture Media and Sport,Department for Culture Media and Sport,03/08/2016,Tribunal Administration Fees,Sports - Programme Costs,Sport Resolutions (UK),30047448,31400,National Anti-Doping Panel SERVICE CONTRACT
Department for Culture Media and Sport,Department for Culture Media and Sport,03/08/2016,Capital Grants to LAs,Broadband UK Capital+Programme,North Lincolnshire Council (Rural),30047467,76147,BDUK Superfast Britain milestone grant claim payment
Department for Culture Media and Sport,Department for Culture Media and Sport,03/08/2016,Capital Grants to LAs,Broadband UK Capital+Programme,Derbyshire County Council,30047468,579278,BDUK Superfast Britain milestone grant claim payment
Department for Culture Media and Sport,Department for Culture Media and Sport,03/08/2016,Grant-in-Aid (DCMS NDPBs),GIA Museums & Galleries,National Maritime Museum,50002332,1066670,RMG GRANT IN AID AUGUST 2016
Department for Culture Media and Sport,Department for Culture Media and Sport,03/08/2016,Grant-in-Aid (DCMS NDPBs),GIA Museums & Galleries,National Gallery,50002333,1662373,NG GRANT IN AID CLAIM AUGUST 2016
Department for Culture Media and Sport,Department for Culture Media and Sport,03/08/2016,Grant to BBC:Home Broadcasting,Home Broadcasting:Grant to BBC,British Broadcasting Corporation,50002340,35032500,BBC GIA AUGUST 2016 PT1
Department for Culture Media and Sport,Department for Culture Media and Sport,03/08/2016,Grant-in-Aid (DCMS NDPBs),GIA Architecture+Heritage,Historic England (GIA),50002346,6000000,Grant-in-Aid August 2016
Department for Culture Media and Sport,Department for Culture Media and Sport,03/08/2016,Grant-in-Aid (DCMS NDPBs),GIA Sports bodies,United Kingdom Sports Council,50002352,3383785,Grant-in-Aid August 2016
Department for Culture Media and Sport,Department for Culture Media and Sport,03/08/2016,Grant-in-Aid (DCMS NDPBs),The Royal Parks - funding,The Royal Parks (GIA),50002354,1000000,Grant-in-Aid August 2016
Department for Culture Media and Sport,Department for Culture Media and Sport,03/08/2016,Grant-in-Aid (DCMS NDPBs),GIA Gambling + Lottery bodies,National Lottery Commission,50002355,267770,Grant-in-Aid August 2016
Department for Culture Media and Sport,Department for Culture Media and Sport,04/08/2016,Current Grants Private Sector,World War I Centenary Prog,The British Council France,30047466,40275.89,Somme 2016 Centenary Commemorations August 2016
Department for Culture Media and Sport,Department for Culture Media and Sport,04/08/2016,VAT-Recoverable Contracted-Out,Misc Balance Sheet,M-Integrated Solutions PLC,30047480,88368.83,Jutland 2016 Centenary Commemorations March 2016
Department for Culture Media and Sport,Department for Culture Media and Sport,04/08/2016,Ceremonials - Other Costs,World War I Centenary Prog,M-Integrated Solutions PLC,30047480,441844.14,Jutland 2016 Centenary Commemorations March 2016
Department for Culture Media and Sport,Department for Culture Media and Sport,05/08/2016,Current Grants Private Sector,LPW and Ecclesiastical,Topmark Claims Management Ltd,30047532,373000,Funding for Listed Places of Worship
Department for Culture Media and Sport,Department for Culture Media and Sport,08/08/2016,Oth Professional Services Prog,ODA Residuary Functions,Turner & Townsend - ODA,30047460,66936,ODA Commercial Services Framework
Department for Culture Media and Sport,Department for Culture Media and Sport,08/08/2016,Temp staff Interim managers,ODA Residuary Functions,Belgrave Eccleston Ltd (ODA),30047499,35910,Consulatancy Services Olympic Residuary Project
Department for Culture Media and Sport,Department for Culture Media and Sport,08/08/2016,Capital Grants to LAs,Broadband UK Capital+Programme,City of York Council,30047544,242083,BDUK Superconnected Cities Connection Vouchers Claim
Department for Culture Media and Sport,Department for Culture Media and Sport,08/08/2016,Capital Grants to LAs,Broadband UK Capital+Programme,Brighton & Hove City Council,30047545,207307,BDUK Superconnected Cities Connection Vouchers Claim
Department for Culture Media and Sport,Department for Culture Media and Sport,08/08/2016,Capital Grants to LAs,Broadband UK Capital+Programme,Dorset County Council,30047546,43604,BDUK Superconnected Cities Connection Vouchers Claim
Department for Culture Media and Sport,Department for Culture Media and Sport,08/08/2016,Grant to BBC:Home Broadcasting,Home Broadcasting:Grant to BBC,British Broadcasting Corporation,50002341,35032500,BBC GIA  AUGUST 2016 PT2
Department for Culture Media and Sport,Department for Culture Media and Sport,09/08/2016,International Subscriptions,International programme spend,European Audiovisual Observatory,30047465,149074,2016 Contribution Part 2
Department for Culture Media and Sport,Department for Culture Media and Sport,09/08/2016,Current Grants Private Sector,DD2 Program,TECH CITY (UK) LTD,30047560,149413,July claim for Tech City UK
Department for Culture Media and Sport,Department for Culture Media and Sport,09/08/2016,Current Grants Private Sector,DD2 Program,TECH CITY (UK) LTD,30047561,180030,July claim for Tech North
Department for Culture Media and Sport,Department for Culture Media and Sport,10/08/2016,VAT-Recoverable Contracted-Out,Misc Balance Sheet,ARCADIS Solutions Ltd,30047526,15350.69,Ceremonial Event Management Services
Department for Culture Media and Sport,Department for Culture Media and Sport,10/08/2016,Works Manager Fees,State Ceremonials Prog Costs,ARCADIS Solutions Ltd,30047526,76753.47,Ceremonial Event Management Services
Department for Culture Media and Sport,Department for Culture Media and Sport,11/08/2016,Grant to BBC:Home Broadcasting,Home Broadcasting:Grant to BBC,British Broadcasting Corporation,50002342,140130000,BBC GIA AUGUST 2016 PT3
Department for Culture Media and Sport,Department for Culture Media and Sport,11/08/2016,Grant to OGD (Resource),OFCOM,OFCOM,50002368,201365,Community Radio Fund 1st 1617 Grant Paym
Department for Culture Media and Sport,Department for Culture Media and Sport,12/08/2016,Current Grants Private Sector,LPW and Ecclesiastical,Topmark Claims Management Ltd,30047608,582010.7,Funding for Listed Places of Worship
Department for Culture Media and Sport,Department for Culture Media and Sport,17/08/2016,Capital Grants to LAs,Broadband UK Capital+Programme,Warwickshire County Council,30047640,104088,BDUK Superfast Britain milestone grant claim payment
Department for Culture Media and Sport,Department for Culture Media and Sport,17/08/2016,Capital Grants to LAs,Broadband UK Capital+Programme,Northumberland County Council,30047641,750944,BDUK Superfast Britain milestone grant claim payment
Department for Culture Media and Sport,Department for Culture Media and Sport,17/08/2016,Capital Grants to LAs,Broadband UK Capital+Programme,Nottingham City Council,30047643,60082,BDUK Superconnected Cities Connection Vouchers Claim
Department for Culture Media and Sport,Department for Culture Media and Sport,17/08/2016,Capital Grants to LAs,Broadband UK Capital+Programme,Leeds City Council (BDUK),30047644,302118,BDUK Superconnected Cities Connection Vouchers Claim
Department for Culture Media and Sport,Department for Culture Media and Sport,17/08/2016,Capital Grants to LAs,Broadband UK Capital+Programme,Newcastle City Council,30047645,36665,BDUK Superconnected Cities Connection Vouchers Claim
Department for Culture Media and Sport,Department for Culture Media and Sport,17/08/2016,Capital Grants to LAs,Broadband UK Capital+Programme,Newcastle City Council,30047646,74665,BDUK Superconnected Cities Connection Vouchers Claim
Department for Culture Media and Sport,Department for Culture Media and Sport,17/08/2016,Capital Grants to LAs,Broadband UK Capital+Programme,Liverpool City Council,30047647,114044,BDUK Superfast Britain milestone grant claim payment
Department for Culture Media and Sport,Department for Culture Media and Sport,18/08/2016,Research,EAU Taking Part Survey,IPSOS MORI,30047632,118475,Taking Part Survey
Department for Culture Media and Sport,Department for Culture Media and Sport,18/08/2016,VAT-Recoverable Contracted-Out,Misc Balance Sheet,IPSOS MORI,30047632,23695,Taking Part Survey
Department for Culture Media and Sport,Department for Culture Media and Sport,18/08/2016,Capital Grants to LAs,Broadband UK Capital+Programme,Greater London Authority,30047666,67046.77,BDUK Superconnected Cities Connection Vouchers Claim
Department for Culture Media and Sport,Department for Culture Media and Sport,18/08/2016,Grant to BBC:Home Broadcasting,Home Broadcasting:Grant to BBC,British Broadcasting Corporation,50002343,35032500,BBC GIA AUGUST 2016 PT4
Department for Culture Media and Sport,Department for Culture Media and Sport,19/08/2016,Internal Audit Service CLG fee,Finance,HM Treasury (15811),30047606,45250,Internal Audit Service Q1 16/17
Department for Culture Media and Sport,Department for Culture Media and Sport,19/08/2016,VAT-Recoverable Contracted-Out,Misc Balance Sheet,HM Treasury (15811),30047606,9050,Internal Audit Service Q1 16/17
Department for Culture Media and Sport,Department for Culture Media and Sport,19/08/2016,Current Grants Private Sector,LPW and Ecclesiastical,Topmark Claims Management Ltd,30047668,387346.05,Funding for Listed Places of Worship
Department for Culture Media and Sport,Department for Culture Media and Sport,22/08/2016,T&S UK (Officials only),Procurement,Redfern Travel Limited,30047521,56999.89,Travel: 01/07/16 - 31/07/16
Department for Culture Media and Sport,Department for Culture Media and Sport,22/08/2016,Capital Grants to LAs,Broadband UK Capital+Programme,Cambridgeshire CC (Urban),30047685,61876,BDUK Superconnected Cities Connection Vouchers Claim
Department for Culture Media and Sport,Department for Culture Media and Sport,22/08/2016,Capital Grants to LAs,Broadband UK Capital+Programme,Cambridgeshire CC (Urban),30047686,66401,BDUK Superconnected Cities Connection Vouchers Claim
Department for Culture Media and Sport,Department for Culture Media and Sport,22/08/2016,Capital Grants to LAs,Broadband UK Capital+Programme,East Cheshire BC Council Fund Account,30047707,506729,BDUK Superfast Britain milestone grant claim payment
Department for Culture Media and Sport,Department for Culture Media and Sport,23/08/2016,Current Grants Private Sector,World War I Centenary Prog,The British Council France,30047704,46854.4,Somme 2016 Centenary Commemorations March 2016
Department for Culture Media and Sport,Department for Culture Media and Sport,23/08/2016,Current Grants Private Sector,World War I Centenary Prog,The British Council France,30047705,27409.2,Somme 2016 Centenary Commemorations March 2016
Department for Culture Media and Sport,Department for Culture Media and Sport,23/08/2016,Capital Grant Private Sector,Grant support to NFTS,National Film & Television School,50002367,210073,NFTS Grant Claim August 2016
Department for Culture Media and Sport,Department for Culture Media and Sport,24/08/2016,Current Grants Private Sector,Other Sports Support(excl ISB),1851 Trust,30047667,799721.72,Grant for BAR educational projects
Department for Culture Media and Sport,Department for Culture Media and Sport,24/08/2016,Grant to BBC:Home Broadcasting,Home Broadcasting:Grant to BBC,British Broadcasting Corporation,50002344,35032500,BBC GIA AUGUST 2016 PT5
Department for Culture Media and Sport,Department for Culture Media and Sport,25/08/2016,Capital Grants to LAs,Broadband UK Capital+Programme,Norfolk County Council,30047737,866671.42,BDUK Superfast Britain milestone grant claim payment
Department for Culture Media and Sport,Department for Culture Media and Sport,25/08/2016,Management of Grant Programmes,LPW and Ecclesiastical,Topmark Claims Mgt (Fees A/C),30047741,56224,Listed Places of Worship Management Fees
Department for Culture Media and Sport,Department for Culture Media and Sport,25/08/2016,VAT-Recoverable Contracted-Out,Misc Balance Sheet,Topmark Claims Mgt (Fees A/C),30047741,11190,Listed Places of Worship Management Fees
Department for Culture Media and Sport,Department for Culture Media and Sport,26/08/2016,Capital Grants to LAs,Broadband UK Capital+Programme,Newcastle City Council,30047745,102296,BDUK Superconnected Cities Connection Vouchers Claim
Department for Culture Media and Sport,Department for Culture Media and Sport,26/08/2016,Capital Grants to LAs,Broadband UK Capital+Programme,Herefordshire Council,30047753,1412501,BDUK Superfast Britain milestone grant claim payment
Department for Culture Media and Sport,Department for Culture Media and Sport,26/08/2016,Current Grants Private Sector,Creative Skillset,Creative Skillset SIF,30047770,924796.66,Creative Skillset Grant: Mar - Apr 2016
Department for Culture Media and Sport,Department for Culture Media and Sport,26/08/2016,Current Grants Private Sector,LPW and Ecclesiastical,Topmark Claims Management Ltd,30047781,395521.23,Funding for Listed Places of Worship
Department for Culture Media and Sport,Department for Culture Media and Sport,26/08/2016,Management of Grant Programmes,LPW and Ecclesiastical,Topmark Claims Mgt (Fees A/C),30047785,55649.6,Listed Places of Worship Management Fees
Department for Culture Media and Sport,Department for Culture Media and Sport,26/08/2016,VAT-Recoverable Contracted-Out,Misc Balance Sheet,Topmark Claims Mgt (Fees A/C),30047785,11080,Listed Places of Worship Management Fees
Department for Culture Media and Sport,Department for Culture Media and Sport,26/08/2016,Management of Grant Programmes,LPW and Ecclesiastical,Topmark Claims Mgt (Fees A/C),30047786,27287.6,Listed Places of Worship Management Fees
Department for Culture Media and Sport,Department for Culture Media and Sport,26/08/2016,VAT-Recoverable Contracted-Out,Misc Balance Sheet,Topmark Claims Mgt (Fees A/C),30047786,5430,Listed Places of Worship Management Fees
Department for Culture Media and Sport,Department for Culture Media and Sport,31/08/2016,Grant to BBC:Home Broadcasting,Home Broadcasting:Grant to BBC,British Broadcasting Corporation,50002369,35056250,BBC GIA SEPTEMBER 2016 PT1
